Workbook

Sheet MEDICINE GENERIC LIST
A1: PSSHMC FORMULARY MEDICINE LIST FOR TENDER 2018-19 | E1: Ahmad bin Qasim(Searle) | L1: Ahmad bin Qasim(Saffron) | S1: Ahmad bin Qasim(Helix) | Z1: Ahmad bin Qasim(Wood Wards) | AG1: Ahmad bin Qasim(Chas a Mendoza) | AN1: Rehman Trading Company (Macter) | AU1: Rehman Trading Company (PharmEvo) | BB1: Rehman Trading Company (Sami) | BI1: Mullar &Phipps(AGP) | BP1: Mullar &Phipps(Novo Nordisk) | BW1: Mullar &Phipps(Ray Pharma) | CD1: Mullar &Phipps(Pharmatec) | CK1: Mullar &Phipps(Aspin Pharma) | CR1: Mullar &Phipps(Gsk*Green Star) | CY1: BMC(Bosch) | DF1: BMC(Barrett Hodgsons &Gene-Tech) | DM1: Medi Aim Pharma(HighNoon) | DT1: Medi Aim Pharma(Next Pharma) | EA1: Medi Aim Pharma(Wilson's) | EH1: Medi Aim Pharma(Searle Company) | EO1: Medi Aim Pharma(Indus Pharma) | EV1: Medi Aim Pharma(Saydon Pharma) | FC1: Kaizen Pharma | FJ1: Yasir Distribution Netwok(Chiesi) | FQ1: Yasir Distribution Netwok(hudson, OBS) | FX1: SurgiVision(B.Braun) | GE1: PDH | GL1: Medics Corporation(Pharmedics) | GS1: Hiranis Pharma | GZ1: ALLONS(Novartis) | HG1: ALLONS(GSK OTC ) | HN1: ALLONS(Pfizer,Wyeth) | HU1: Umair Enterprises(Shahzeb,Reko,,Elite,Bajwa,) | IB1: Bilal & Co | II1: Tiltis Pharma | IP1: 3S Pharma | IW1: Sanofi Aventis pak | JD1: Delta Enterprises | JK1: Martin Dow | JR1: Al-Qamar (GT Pharma) | JY1: Al-Qamar (Brooks Pharma) | KF1: Al-Qamar (Genix Pharma) | KM1: Vikor Enterprises(Ferozsons,Gsk,Dong-A ) | KT1: Farmacia (BF Bio | LA1: Azan Enterprises | LH1: Platinum Pharma | LO1: Medicas(Cibex) | LV1: Medicas (Danas Pharma) | MC1: Medicas (Getz Pharma) | MJ1: Medicas (KCL Pharma) | MQ1: Medicas (Sante Pvt Ltd) | MX1: Medicas (Scilife Pharma) | NE1: Medicas (Shaigan Pharma) | NL1: Pharmac ( Hoover,Citi,GMP) | NS1: Pharmacons(Abbott ) | NZ1: Pharmacons(Alza Pharma) | OG1: Pharmacons(Amsin Vaccine & Pharma) | ON1: Pharmacons(Asian Continental ) | OU1: Pharmacons(Cirin Pharma) | PB1: Pharmacons(Ethical Lab) | PI1: Pharmacons(Glitz Pharma) | PP1: Pharmacons(NabiQasim Ind) | PW1: Pharmacons(Surge Lab) | QD1: Pharmacons(Valor Pharma) | QK1: LHC(Convell) | QR1: LHC(Care Pharma) | QY1: Medi Rite (Derma-Techno)
A2: Sr.# | B2: Dosage form. | C2: Generic | D2: Pack Size | E2: Brand Name with strenght | F2: Dosage Form | G2: Pack Size | H2: MRP | I2: Offered Price | J2: %Age Discount | K2: Manufacturer | L2: Brand Name with strenght | M2: Dosage Form | N2: Pack Size | O2: MRP | P2: Offered Price | Q2: %age Discount | R2: Manufacturer | S2: Brand Name with strenght | T2: Dosage Form | U2: Pack Size | V2: MRP | W2: Offered Price | X2: %age Discount | Y2: Manufacturer | Z2: Brand Name with strenght | AA2: Dosage Form | AB2: Pack Size | AC2: MRP | AD2: Offered Price | AE2: %age Discount | AF2: Manufacturer | AG2: Brand Name with strenght | AH2: Dosage Form | AI2: Pack Size | AJ2: MRP | AK2: Offered Price | AL2: % age Discount | AM2: Manufacturer | AN2: Brand Name with strenght | AO2: Dosage Form | AP2: Pack Size(No's) | AQ2: MRP | AR2: Offered Price | AS2: % age Discount | AT2: Manufacturer | AU2: Brand Name with strenght | AV2: Dosage Form | AW2: Pack Size(No's) | AX2: MRP | AY2: Offered Price | AZ2: % age Discount | BA2: Manufacturer | BB2: Brand Name with strenght | BC2: Dosage Form | BD2: Pack Size(No's) | BE2: MRP | BF2: Offered Price | BG2: % age Discount | BH2: Manufacturer | BI2: Brand Name with strenght | BJ2: Dosage Form | BK2: Pack Size(No's) | BL2: MRP | BM2: Offered Price | BN2: % age Discount | BO2: Manufacturer | BP2: Brand Name with strenght | BQ2: Dosage Form | BR2: Pack Size(No's) | BS2: MRP | BT2: Offered Price | BU2: % age Discount | BV2: Manufacturer | BW2: Brand Name with strenght | BX2: Dosage Form | BY2: Pack Size(No's) | BZ2: MRP | CA2: Offered Price | CB2: % age Discount | CC2: Manufacturer | CD2: Brand Name with strenght | CE2: Dosage Form | CF2: Pack Size(No's) | CG2: MRP | CH2: Offered Price | CI2: % age Discount | CJ2: Manufacturer | CK2: Brand Name with strenght | CL2: Dosage Form | CM2: Pack Size(No's) | CN2: MRP | CO2: Offered Price | CP2: % age Discount | CQ2: Manufacturer | CR2: Brand Name with strenght | CS2: Dosage Form | CT2: Pack Size(No's) | CU2: MRP | CV2: Offered Price | CW2: % age Discount | CX2: Manufacturer | CY2: Brand Name with strenght | CZ2: Dosage Form | DA2: Pack Size(No's) | DB2: MRP | DC2: Offered Price | DD2: % age Discount | DE2: Manufacturer | DF2: Brand Name with strenght | DG2: Dosage Form | DH2: Pack Size(No's) | DI2: MRP | DJ2: Offered Price | DK2: % age Discount | DL2: Manufacturer | DM2: Brand Name with strenght | DN2: Dosage Form | DO2: Pack Size(No's) | DP2: MRP | DQ2: Offered Price | DR2: % age Discount | DS2: Manufacturer | DT2: Brand Name with strenght | DU2: Dosage Form | DV2: Pack Size(No's) | DW2: MRP | DX2: Offered Price | DY2: % age Discount | DZ2: Manufacturer | EA2: Brand Name with strenght | EB2: Dosage Form | EC2: Pack Size(No's) | ED2: MRP | EE2: Offered Price | EF2: % age Discount | EG2: Manufacturer | EH2: Brand Name with strenght | EI2: Dosage Form | EJ2: Pack Size(No's) | EK2: MRP | EL2: Offered Price | EM2: % age Discount | EN2: Manufacturer | EO2: Brand Name with strenght | EP2: Dosage Form | EQ2: Pack Size(No's) | ER2: MRP | ES2: Offered Price | ET2: % age Discount | EU2: Manufacturer | EV2: Brand Name with strenght | EW2: Dosage Form | EX2: Pack Size(No's) | EY2: MRP | EZ2: Offered Price | FA2: % age Discount | FB2: Manufacturer | FC2: Brand Name with strenght | FD2: Dosage Form | FE2: Pack Size(No's) | FF2: MRP | FG2: Offered Price | FH2: % age Discount | FI2: Manufacturer | FJ2: Brand Name with strenght | FK2: Dosage Form | FL2: Pack Size(No's) | FM2: MRP | FN2: Offered Price | FO2: % age Discount | FP2: Manufacturer | FQ2: Brand Name with strenght | FR2: Dosage Form | FS2: Pack Size(No's) | FT2: MRP | FU2: Offered Price | FV2: % age Discount | FW2: Manufacturer | FX2: Brand Name with strenght | FY2: Dosage Form | FZ2: Pack Size(No's) | GA2: MRP | GB2: Offered Price | GC2: % age Discount | GD2: Manufacturer | GE2: Brand Name with strenght | GF2: Dosage Form | GG2: Pack Size(No's) | GH2: MRP | GI2: Offered Price | GJ2: % age Discount | GK2: Manufacturer | GL2: Brand Name with strenght | GM2: Dosage Form | GN2: Pack Size(No's) | GO2: MRP | GP2: Offered Price | GQ2: % age Discount | GR2: Manufacturer | GS2: Brand Name with strenght | GT2: Dosage Form | GU2: Pack Size(No's) | GV2: MRP | GW2: Offered Price | GX2: % age Discount | GY2: Manufacturer | GZ2: Brand Name with strenght | HA2: Dosage Form | HB2: Pack Size(No's) | HC2: MRP | HD2: Offered Price | HE2: % age Discount | HF2: Manufacturer | HG2: Brand Name with strenght | HH2: Dosage Form | HI2: Pack Size(No's) | HJ2: MRP | HK2: Offered Price | HL2: % age Discount | HM2: Manufacturer | HN2: Brand Name with strenght | HO2: Dosage Form | HP2: Pack Size(No's) | HQ2: MRP | HR2: Offered Price | HS2: % age Discount | HT2: Manufacturer | HU2: Brand Name with strenght | HV2: Dosage Form | HW2: Pack Size(No's) | HX2: MRP | HY2: Offered Price | HZ2: % age Discount | IA2: Manufacturer | IB2: Brand Name with strenght | IC2: Dosage Form | ID2: Pack Size(No's) | IE2: MRP | IF2: Offered Price | IG2: % age Discount | IH2: Manufacturer | II2: Brand Name with strenght | IJ2: Dosage Form | IK2: Pack Size(No's) | IL2: MRP | IM2: Offered Price | IN2: % age Discount | IO2: Manufacturer | IP2: Brand Name with strenght | IQ2: Dosage Form | IR2: Pack Size(No's) | IS2: MRP | IT2: Offered Price | IU2: % age Discount | IV2: Manufacturer | IW2: Brand Name with strenght | IX2: Dosage Form | IY2: Pack Size(No's) | IZ2: MRP | JA2: Offered Price | JB2: % age Discount | JC2: Manufacturer | JD2: Brand Name with strenght | JE2: Dosage Form | JF2: Pack Size(No's) | JG2: MRP | JH2: Offered Price | JI2: % age Discount | JJ2: Manufacturer | JK2: Brand Name with strenght | JL2: Dosage Form | JM2: Pack Size(No's) | JN2: MRP | JO2: Offered Price | JP2: % age Discount | JQ2: Manufacturer | JR2: Brand Name with strenght | JS2: Dosage Form | JT2: Pack Size(No's) | JU2: MRP | JV2: Offered Price | JW2: % age Discount | JX2: Manufacturer | JY2: Brand Name with strenght | JZ2: Dosage Form | KA2: Pack Size(No's) | KB2: MRP | KC2: Offered Price | KD2: % age Discount | KE2: Manufacturer | KF2: Brand Name with strenght | KG2: Dosage Form | KH2: Pack Size(No's) | KI2: MRP | KJ2: Offered Price | KK2: % age Discount | KL2: Manufacturer | KM2: Brand Name with strenght | KN2: Dosage Form | KO2: Pack Size(No's) | KP2: MRP | KQ2: Offered Price | KR2: % age Discount | KS2: Manufacturer | KT2: Brand Name with strenght | KU2: Dosage Form | KV2: Pack Size(No's) | KW2: MRP | KX2: Offered Price | KY2: % age Discount | KZ2: Manufacturer | LA2: Brand Name with strenght | LB2: Dosage Form | LC2: Pack Size(No's) | LD2: MRP | LE2: Offered Price | LF2: % age Discount | LG2: Manufacturer | LH2: Brand Name with strenght | LI2: Dosage Form | LJ2: Pack Size(No's) | LK2: MRP | LL2: Offered Price | LM2: % age Discount | LN2: Manufacturer | LO2: Brand Name with strenght | LP2: Dosage Form | LQ2: Pack Size(No's) | LR2: MRP | LS2: Offered Price | LT2: % age Discount | LU2: Manufacturer | LV2: Brand Name with strenght | LW2: Dosage Form | LX2: Pack Size(No's) | LY2: MRP | LZ2: Offered Price | MA2: % age Discount | MB2: Manufacturer | MC2: Brand Name with strenght | MD2: Dosage Form | ME2: Pack Size(No's) | MF2: MRP | MG2: Offered Price | MH2: % age Discount | MI2: Manufacturer | MJ2: Brand Name with strenght | MK2: Dosage Form | ML2: Pack Size(No's) | MM2: MRP | MN2: Offered Price | MO2: % age Discount | MP2: Manufacturer | MQ2: Brand Name with strenght | MR2: Dosage Form | MS2: Pack Size(No's) | MT2: MRP | MU2: Offered Price | MV2: % age Discount | MW2: Manufacturer | MX2: Brand Name with strenght | MY2: Dosage Form | MZ2: Pack Size(No's) | NA2: MRP | NB2: Offered Price | NC2: % age Discount | ND2: Manufacturer | NE2: Brand Name with strenght | NF2: Dosage Form | NG2: Pack Size(No's) | NH2: MRP | NI2: Offered Price | NJ2: % age Discount | NK2: Manufacturer | NL2: Brand Name with strenght | NM2: Dosage Form | NN2: Pack Size(No's) | NO2: MRP | NP2: Offered Price | NQ2: % age Discount | NR2: Manufacturer | NS2: Brand Name with strenght | NT2: Dosage Form | NU2: Pack Size(No's) | NV2: MRP | NW2: Offered Price | NX2: % age Discount | NY2: Manufacturer | NZ2: Brand Name with strenght | OA2: Dosage Form | OB2: Pack Size(No's) | OC2: MRP | OD2: Offered Price | OE2: % age Discount | OF2: Manufacturer | OG2: Brand Name with strenght | OH2: Dosage Form | OI2: Pack Size(No's) | OJ2: MRP | OK2: Offered Price | OL2: % age Discount | OM2: Manufacturer | ON2: Brand Name with strenght | OO2: Dosage Form | OP2: Pack Size(No's) | OQ2: MRP | OR2: Offered Price | OS2: % age Discount | OT2: Manufacturer | OU2: Brand Name with strenght | OV2: Dosage Form | OW2: Pack Size(No's) | OX2: MRP | OY2: Offered Price | OZ2: % age Discount | PA2: Manufacturer | PB2: Brand Name with strenght | PC2: Dosage Form | PD2: Pack Size(No's) | PE2: MRP | PF2: Offered Price | PG2: % age Discount | PH2: Manufacturer | PI2: Brand Name with strenght | PJ2: Dosage Form | PK2: Pack Size(No's) | PL2: MRP | PM2: Offered Price | PN2: % age Discount | PO2: Manufacturer | PP2: Brand Name with strenght | PQ2: Dosage Form | PR2: Pack Size(No's) | PS2: MRP | PT2: Offered Price | PU2: % age Discount | PV2: Manufacturer | PW2: Brand Name with strenght | PX2: Dosage Form | PY2: Pack Size(No's) | PZ2: MRP | QA2: Offered Price | QB2: % age Discount | QC2: Manufacturer | QD2: Brand Name with strenght | QE2: Dosage Form | QF2: Pack Size(No's) | QG2: MRP | QH2: Offered Price | QI2: % age Discount | QJ2: Manufacturer | QK2: Brand Name with strenght | QL2: Dosage Form | QM2: Pack Size(No's) | QN2: MRP | QO2: Offered Price | QP2: % age Discount | QQ2: Manufacturer | QR2: Brand Name with strenght | QS2: Dosage Form | QT2: Pack Size(No's) | QU2: MRP | QV2: Offered Price | QW2: % age Discount | QX2: Manufacturer | QY2: Brand Name with strenght | QZ2: Dosage Form | RA2: Pack Size(No's) | RB2: MRP | RC2: Offered Price | RD2: % age Discount | RE2: Manufacturer
B3: D/F | C3: (A) Antacids/Antisecretry/Antiulcer
A4: 1' | B4: Susp | C4: Al Hydroxide 215mg,Mg Hydroxide 80mg, Simethicone 25mg/5ml | D4: 120ml | EA4: Magalcid | EB4: Susp | EC4: 1's | ED4: 44 | EE4: 26 | EF4: =100-EE4/ED4*100 -> 40.90909091 | EG4: Wilson's | NS4: Dijex MP | NT4: Susp | NU4: 120ml | NV4: 36.42 | NW4: 30.96 | NX4: =100-NW4/NV4*100 -> 14.99176277 | NY4: Abbott LAB
A5: 1 | B5: Cap | C5: Esomeprazol 20mg | D5: 14's | AG5: Essocam 20mg | AH5: Cap | AI5: 14's | AJ5: 119 | AK5: 89.01 | AL5: =100-AK5/AJ5*100 -> 25.20168067 | AM5: Chas a Mendoza | AN5: Esnate | AO5: Cap | AP5: 14's | AQ5: 123.31 | AR5: 62.66 | AS5: =100-AR5/AQ5*100 -> 49.18498094 | AT5: Macter | AU5: Fasteso 20mg | AV5: Cap | AW5: 14's | AX5: 176.02 | AY5: 43.68 | AZ5: =100-AY5/AX5*100 -> 75.18463811 | BA5: PharmEvo | BB5: NovoTeph 20mg | BC5: Cap | BD5: 14's | BE5: 123.21 | BF5: 43.96 | BG5: =100-BF5/BE5*100 -> 64.32107783 | BH5: Sami | BW5: Rayprazoie 20mg | BX5: Cap | BY5: 14's | BZ5: 123.21 | CA5: 78.55 | CB5: =100-CA5/BZ5*100 -> 36.24705787 | CC5: Ray Pharma | CY5: Somezole 20mg | CZ5: Cap | DA5: 14's | DB5: 126 | DC5: 91.04 | DD5: =100-DC5/DB5*100 -> 27.74603175 | DE5: Bosch | DF5: AciReg 20mg | DG5: Cap | DH5: 14's | DI5: 163.31 | DJ5: 46 | DK5: =100-DJ5/DI5*100 -> 71.8327108 | DL5: BH | DM5: Axesom 20mg | DN5: Cap | DO5: 14's | DP5: 123.21 | DQ5: 50 | DR5: =100-DQ5/DP5*100 -> 59.41887834 | DS5: Highnoon | DT5: Esonext 20mg | DU5: Cap | DV5: 14's | DW5: 119 | DX5: 36 | DY5: =100-DX5/DW5*100 -> 69.74789916 | DZ5: Next Pharma | EV5: Ul-Some 20mg | EW5: Cap | EX5: 14's | EY5: 170 | EZ5: 41.86 | FA5: =100-EZ5/EY5*100 -> 75.37647059 | FB5: Saydon Pharma | GS5: Lomac 20mg | GT5: Cap | GU5: 14's | GV5: 123.21 | GW5: 53 | GX5: =100-GW5/GV5*100 -> 56.98401104 | GY5: Hiranis Pharma | HU5: Simeso 20mg | HV5: Cap | HW5: 14's | HX5: 119 | HY5: 60.2 | HZ5: =100-HY5/HX5*100 -> 49.41176471 | IA5: Sims Pharma | IB5: Essom 20mg | IC5: Cap | ID5: 14's | IE5: 172 | IF5: 70 | IG5: =100-IF5/IE5*100 -> 59.30232558 | IH5: Medizan Lab | II5: Zolpip 20mg | IJ5: Cap | IK5: 14's | IL5: 123.21 | IM5: 42 | IN5: =100-IM5/IL5*100 -> 65.9118578 | IO5: Tiltis Pharma | IP5: Eziprol 20mg | IQ5: Cap | IR5: 14's | IS5: 119 | IT5: 20 | IU5: =100-IT5/IS5*100 -> 83.19327731 | IV5: 3S Pharma | JD5: S-Zole 20mg | JE5: Cap | JF5: 14's | JG5: 170 | JH5: 50.4 | JI5: =100-JH5/JG5*100 -> 70.35294118 | JJ5: Novamed | JY5: E-Cap 20mg | JZ5: Cap | KA5: 14's | KB5: 100 | KC5: 40 | KD5: =100-KC5/KB5*100 -> 60 | KE5: Brooks | KF5: Zoleric 20mg | KG5: Cap | KH5: 14's | KI5: 168 | KJ5: 49.8 | KK5: =100-KJ5/KI5*100 -> 70.35714286 | KL5: Genix Pharma | LA5: Esoson 20mg | LB5: Cap | LC5: 14's | LD5: 119 | LE5: 50 | LF5: =100-LE5/LD5*100 -> 57.98319328 | LG5: Unisons Pharma | LO5: Cimora 20mg | LP5: Cap | LQ5: 14's | LR5: 144 | LS5: 52 | LT5: =100-LS5/LR5*100 -> 63.88888889 | LU5: Cibex Pvt Ltd | MC5: Nexum 20mg | MD5: Cap | ME5: 14's | MF5: 172 | MG5: 82.4 | MH5: =100-MG5/MF5*100 -> 52.09302326 | MI5: Getz Pharma | MJ5: Pep-eez 20mg | MK5: Cap | ML5: 14's | MM5: 145 | MN5: 49.45 | MO5: =100-MN5/MM5*100 -> 65.89655172 | MP5: KCL Pharma | NL5: Esowell 20mg | NM5: Cap | NN5: 14's | NO5: 122 | NP5: 75 | NQ5: =100-NP5/NO5*100 -> 38.52459016 | NR5: Hoover | NS5: Ezomol 20mg | NT5: Cap | NU5: 14's | NV5: 120.7 | NW5: 68.2 | NX5: 43.49627175 | NY5: Abbott LAB | OU5: Esopase 20mg | OV5: Cap | OW5: 14's | OX5: 121.48 | OY5: 37.7 | OZ5: =100-OY5/OX5*100 -> 68.96608495 | PA5: Cirin Pharma | PI5: Eger 20mg | PJ5: Cap | PK5: 14's | PL5: 154 | PM5: 64.45 | PN5: =100-PM5/PL5*100 -> 58.14935065 | PO5: Glitz Pharma | PP5: Es-Loprot 20mg | PQ5: Cap | PR5: 14's | PS5: 126 | PT5: 53.75 | PU5: =100-PT5/PS5*100 -> 57.34126984 | PV5: Nabiqasim | QD5: Oxilant 20mg | QE5: Cap | QF5: 14's | QG5: 119 | QH5: 98.12 | QI5: =100-QH5/QG5*100 -> 17.54621849 | QJ5: Valor Pharma
A6: 2 | B6: Cap | C6: Esomeprazol 40mg | D6: 14's | AG6: Essocam 40mg | AH6: Cap | AI6: 14's | AJ6: 198 | AK6: 148.1 | AL6: 25.2020202 | AM6: Chas a Mendoza | AN6: Esnate 40mg | AO6: Cap | AP6: 14's | AQ6: 204.01 | AR6: 121.98 | AS6: 40.20881329 | AT6: Macter | AU6: Fasteso 40mg | AV6: Cap | AW6: 14's | AX6: 252 | AY6: 61 | AZ6: 75.79365079 | BA6: PharmEvo | BB6: NovoTeph 40mg | BC6: Cap | BD6: 14's | BE6: 250 | BF6: 67.9 | BG6: 72.84 | BH6: Sami | CY6: Somezole 40mg | CZ6: Cap | DA6: 14's | DB6: 220 | DC6: 158.95 | DD6: 27.75 | DE6: Bosch | DF6: AciReg 40mg | DG6: Cap | DH6: 14's | DI6: 262.71 | DJ6: 66 | DK6: 74.87724106 | DL6: BH | DM6: Axesom 40mg | DN6: Cap | DO6: 14's | DP6: 205.01 | DQ6: 60 | DR6: 70.73313497 | DS6: Highnoon | DT6: Esonext 40mg | DU6: Cap | DV6: 14's | DW6: 198 | DX6: 55 | DY6: 72.22222222 | DZ6: Next Pharma | EV6: Ul-Some 40mg | EW6: Cap | EX6: 14's | EY6: 230.6 | EZ6: 55.86 | FA6: 75.77623591 | FB6: Saydon Pharma | GS6: Lomac 40mg | GT6: Cap | GU6: 14's | GV6: 205.01 | GW6: 63.48 | GX6: 69.0356568 | GY6: Hiranis Pharma | HU6: Simeso 40mg | HV6: Cap | HW6: 14's | HX6: 198 | HY6: 62.3 | HZ6: 68.53535354 | IA6: Sims Pharma | IB6: Essom 40mg | IC6: Cap | ID6: 14's | IE6: 370 | IF6: 70 | IG6: =100-IF6/IE6*100 -> 81.08108108 | IH6: Medizan Lab | II6: Zolpip 40mg | IJ6: Cap | IK6: 14's | IL6: 205.01 | IM6: 49 | IN6: =100-IM6/IL6*100 -> 76.09872689 | IO6: Tiltis Pharma | IP6: Eziprol 40mg | IQ6: Cap | IR6: 14's | IS6: 198 | IT6: 37.29 | IU6: 81.16666667 | IV6: 3S Pharma | JD6: S-Zole 40mg | JE6: Cap | JF6: 14's | JG6: 323 | JH6: 60.2 | JI6: =100-JH6/JG6*100 -> 81.3622291 | JJ6: Novamed | JY6: E-Cap 40mg | JZ6: Cap | KA6: 14's | KB6: 150 | KC6: 45 | KD6: 70 | KE6: Brooks | KF6: Zoleric 40mg | KG6: Cap | KH6: 14's | KI6: 252 | KJ6: 65 | KK6: 74.20634921 | KL6: Genix Pharma | LA6: Esoson 40mg | LB6: Cap | LC6: 14's | LD6: 198 | LE6: 59 | LF6: 70.2020202 | LG6: Unisons Pharma | MC6: Nexum 40mg | MD6: Cap | ME6: 14's | MF6: 334 | MG6: 63 | MH6: 81.13772455 | MI6: Getz Pharma | MQ6: Esocool 40mg | MR6: Cap | MS6: 14's | MT6: 200.83 | MU6: 75 | MV6: =100-MU6/MT6*100 -> 62.65498183 | MW6: Sante Pvt Ltd | NL6: Esowell 40mg | NM6: Cap | NN6: 14's | NO6: 204 | NP6: 90 | NQ6: 55.88235294 | NR6: Hoover | NS6: Ezomol 40mg | NT6: Cap | NU6: 14's | NV6: 200.83 | NW6: 81 | NX6: 59.66738037 | NY6: Abbott LAB | OU6: Esopase 20mg | OV6: Cap | OW6: 14's | OX6: 202.12 | OY6: 49.95 | OZ6: 75.28695824 | PA6: Cirin Pharma | PI6: Eger 40mg | PJ6: Cap | PK6: 14's | PL6: 224 | PM6: 84.25 | PN6: 62.38839286 | PO6: Glitz Pharma | PP6: Es-Loprot 40mg | PQ6: Cap | PR6: 14's | PS6: 196 | PT6: 79 | PU6: 59.69387755 | PV6: Nabiqasim | QD6: Oxilant 40mg | QE6: Cap | QF6: 14's | QG6: 198 | QH6: 163.25 | QI6: 17.55050505 | QJ6: Valor Pharma
A7: 3 | B7: Cap | C7: Pantoprazole 40mg | D7: 14's | BB7: Neege 40mg | BC7: Cap | BD7: 14'S | BE7: 220 | BF7: 85.4 | BG7: 61.18181818 | BH7: Sami | GS7: Glover 40mg | GT7: Tab | GU7: 14's | GV7: 240 | GW7: 49.78 | GX7: 79.25833333 | GY7: Hiranis Pharma | IB7: Pansi 40mg | IC7: Tab | ID7: 14's | IE7: 240 | IF7: 204 | IG7: 15 | IH7: Siam Pharma | LA7: Unipanto 40 | LB7: Cap | LC7: 14's | LD7: 238 | LE7: 74 | LF7: 68.90756303 | LG7: Unisons Pharma | NL7: Pantomax 40mg | NM7: Cap | NN7: 14's | NO7: 249 | NP7: 90 | NQ7: 63.85542169 | NR7: Hoover | QK7: Contazole 40mg | QL7: Tab | QM7: 14's | QN7: 308 | QO7: 80 | QP7: =100-QO7/QN7*100 -> 74.02597403 | QQ7: Convell
A8: 4 | B8: Inj. | C8: Esomeprazol 40mg | D8: vial | CY8: Somezole 40mg | CZ8: Inj | DA8: 1's | DB8: 250 | DC8: 159.38 | DD8: 36.248 | DE8: Bosch | MC8: Nexum 40mg | MD8: Inj | ME8: 1's | MF8: 310 | MG8: 85 | MH8: 72.58064516 | MI8: Getz Pharma
A9: 5 | B9: Tab | C9: Mag. Trisilicate + Dried Alu Hydroxide | D9: 100's
A10: 6 | B10: Cap | C10: Omeprazole 20mg | D10: 14's | E10: Anzo 20mg | F10: Cap | G10: 14's | H10: 149.2 | I10: 73 | J10: =100-I10/H10*100 -> 51.07238606 | K10: Searle Pharma | L10: Noctis 20mg | M10: Cap | N10: 14's | O10: 149.1 | P10: 66.34 | Q10: =100-P10/O10*100 -> 55.50637156 | R10: Saffron | AU10: Zoltar 20mg | AV10: Cap | AW10: 14's | AX10: 173.94 | AY10: 59 | AZ10: 66.08025756 | BA10: Pharmevo | BB10: Teph 20mg | BC10: Cap | BD10: 14 | BE10: 180 | BF10: 45.5 | BG10: 74.72222222 | BH10: Sami | CD10: Prazol 20mg | CE10: Cap | CF10: 14's | CG10: 195 | CH10: 140.89 | CI10: =100-CH10/CG10*100 -> 27.74871795 | CJ10: Pharmatec | CY10: Omezol 20mg | CZ10: Cap | DA10: 14's | DB10: 154 | DC10: 95.56 | DD10: 37.94805195 | DE10: Bosch | DT10: Omecap 20mg | DU10: Cap | DV10: 14's | DW10: 144 | DX10: 24 | DY10: =100-DX10/DW10*100 -> 83.33333333 | DZ10: Next Pharma | EO10: Cidpro 20mg | EP10: Cap | EQ10: 14's | ER10: 149.1 | ES10: 82.38 | ET10: =100-ES10/ER10*100 -> 44.74849095 | EU10: Indus Pharma | EV10: Osyd 20mg | EW10: Cap | EX10: 14's | EY10: 180 | EZ10: 34.86 | FA10: =100-EZ10/EY10*100 -> 80.63333333 | FB10: Saydon Pharma | GL10: Nilcid 20mg | GM10: Cap | GN10: 14's | GO10: 127.5 | GP10: 39.9 | GQ10: =100-GP10/GO10*100 -> 68.70588235 | GR10: Pharmedic | IB10: Gosoft 20mg | IC10: Cap | ID10: 14's | IE10: 144 | IF10: 50 | IG10: =100-IF10/IE10*100 -> 65.27777778 | IH10: Bio-Mark Pharma | II10: Titrazole 20mg | IJ10: Cap | IK10: 14's | IL10: 149.1 | IM10: 37 | IN10: =100-IM10/IL10*100 -> 75.18443997 | IO10: Tiltis Pharma | IP10: Omjet 20mg | IQ10: Cap | IR10: 14's | IS10: 144 | IT10: 29.38 | IU10: =100-IT10/IS10*100 -> 79.59722222 | IV10: 3S Pharma | JD10: O-Zole 20mg | JE10: Cap | JF10: 100'S | JG10: 946 | JH10: 200 | JI10: =100-JH10/JG10*100 -> 78.85835095 | JJ10: Novamed | JY10: Omesec 20mg | JZ10: Cap | KA10: 14's | KB10: 130 | KC10: 38 | KD10: =100-KC10/KB10*100 -> 70.76923077 | KE10: Brooks | KF10: Mep 20mg | KG10: Cap | KH10: 14's | KI10: 149.11 | KJ10: 49 | KK10: =100-KJ10/KI10*100 -> 67.13835424 | KL10: Genix Pharma | KM10: Omega 20mg | KN10: Cap | KO10: 14's | KP10: 195 | KQ10: 50 | KR10: =100-KQ10/KP10*100 -> 74.35897436 | KS10: Ferozsons Labs | LA10: Oray 20mg | LB10: Cap | LC10: 14's | LD10: 144 | LE10: 36 | LF10: =100-LE10/LD10*100 -> 75 | LG10: Wimits Pharma | LV10: Omenza 20mg | LW10: Cap | LX10: 14's | LY10: 144 | LZ10: 21.25 | MA10: =100-LZ10/LY10*100 -> 85.24305556 | MB10: Danas Pharma | MC10: Risek 20mg | MD10: Cap | ME10: 14's | MF10: 223.86 | MG10: 37.5 | MH10: 83.24845886 | MI10: Getz Pharma | OG10: Omepral 20mg | OH10: Cap | OI10: 14's | OJ10: 145 | OK10: 58.8 | OL10: =100-OK10/OJ10*100 -> 59.44827586 | OM10: Amson Vaccines & Pharma | ON10: Zolbi 20mg | OO10: Cap | OP10: 14's | OQ10: 144 | OR10: 91.8 | OS10: =100-OR10/OQ10*100 -> 36.25 | OT10: Asian Contiental | PI10: Zoglit 20mg | PJ10: Cap | PK10: 14's | PL10: 144 | PM10: 35.7 | PN10: =100-PM10/PL10*100 -> 75.20833333 | PO10: Glitz Pharma | PP10: Loprot 20mg | PQ10: Cap | PR10: 14's | PS10: 126 | PT10: 56.25 | PU10: =100-PT10/PS10*100 -> 55.35714286 | PV10: Nabiqasim | QD10: Omepraval 20mg | QE10: Cap | QF10: 14's | QG10: 144 | QH10: 118.73 | QI10: =100-QH10/QG10*100 -> 17.54861111 | QJ10: Valor Pharma | QY10: Z-Pral 20mg | QZ10: Cap | RA10: 14's | RB10: 122.4 | RC10: 97.92 | RD10: =100-RC10/RB10*100 -> 20 | RE10: Derma Techno
A11: 7 | B11: Infusion | C11: Omeprazole 40mg Infusion | D11: 5's | AU11: Zoltar 40mg | AV11: Inf | AW11: 1's | AX11: 240 | AY11: 106 | AZ11: 55.83333333 | BA11: Pharmevo | CY11: Omezol 40mg | CZ11: Inj | DA11: 1's | DB11: 275 | DC11: 44.4 | DD11: 83.85454545 | DE11: Bosch | MC11: Risek 40mg | MD11: Inj | ME11: 1's | MF11: 310 | MG11: 81.5 | MH11: 73.70967742 | MI11: Getz Pharma
A12: 8 | B12: Tab | C12: Ranitidine 150mg | D12: 10's | CY12: Nulcer 150mg | CZ12: Tab | DA12: 10's | DB12: 85 | DC12: 36.1 | DD12: 57.52941176 | DE12: Bosch | EO12: Anzol 150mg | EP12: Tab | EQ12: 10's | ER12: 85 | ES12: 50.58 | ET12: =100-ES12/ER12*100 -> 40.49411765 | EU12: Indus Pharma | IP12: S-Cid 150mg | IQ12: Tab | IR12: 10's | IS12: 56 | IT12: 20.5 | IU12: =100-IT12/IS12*100 -> 63.39285714 | IV12: 3S Pharma | JK12: Ranulcid | JL12: Tab | JM12: 10's | JN12: 68.4 | JO12: 53.42 | JP12: =100-JO12/JN12*100 -> 21.9005848 | JQ12: Martin Dow | LV12: Nitid 150mg | LW12: Tab | LX12: 10's | LY12: 56 | LZ12: 18.52 | MA12: =100-LZ12/LY12*100 -> 66.92857143 | MB12: Danas Pharma | NL12: Duotec 150mg | NM12: Tab | NN12: 10's | NO12: 70 | NP12: 26 | NQ12: =100-NP12/NO12*100 -> 62.85714286 | NR12: Citi Pharma | PP12: Pepticure 150mg | PQ12: Tab | PR12: 28's | PS12: 105.49 | PT12: 31.75 | PU12: =100-PT12/PS12*100 -> 69.90236041 | PV12: Nabiqasim
A13: 9 | B13: Tab | C13: Sodamint Tablet | D13: 1000's
A14: 10 | B14: Inj. | C14: Ranitidine 50mg/2ml | D14: 5's | CY14: Nulcer 50mg | CZ14: Inj | DA14: 5's | DB14: 110 | DC14: 43.1 | DD14: 60.81818182 | DE14: Bosch | EO14: Anzol 50mg | EP14: Inj | EQ14: 10's | ER14: 154.28 | ES14: 85.24 | ET14: =100-ES14/ER14*100 -> 44.74980555 | EU14: Indus Pharma | PW14: Peptiject | PX14: Inj | PY14: 10's | PZ14: 121.72 | QA14: 85 | QB14: =100-QA14/PZ14*100 -> 30.16759777 | QC14: Surge Lab
A15: 11 | B15: Tab | C15: Serratiopeptidase 5mg | D15: 20's | S15: Danzen 5mg | T15: Tab | U15: 20's | V15: 135 | W15: 114.75 | X15: =100-W15/V15*100 -> 15 | Y15: Helix | GS15: Mirazym 5mg | GT15: Tab | GU15: 20's | GV15: 135 | GW15: 39.78 | GX15: =100-GW15/GV15*100 -> 70.53333333 | GY15: Hiranis Pharma
A16: 12 | B16: Tab | C16: Serratiopeptidase 10mg | D16: 20's | S16: Danzen DS | T16: Tab | U16: 20's | V16: 215 | W16: 182.75 | X16: 15 | Y16: Helix | GS16: Mirazym DS 10mg | GT16: Tab | GU16: 20's | GV16: 210 | GW16: 48 | GX16: 77.14285714 | GY16: Hiranis Pharma | ON16: Conzyme 10mg | OO16: Tab | OP16: 20's | OQ16: 195 | OR16: 148 | OS16: =100-OR16/OQ16*100 -> 24.1025641 | OT16: Asian Contiental
A17: 13 | B17: Susp | C17: Sucralfate 1g/5ml Suspension | D17: 60ml | DM17: Ulsanic | DN17: Susp | DO17: 1's | DP17: 131.7 | DQ17: 100 | DR17: =100-DQ17/DP17*100 -> 24.06985573 | DS17: Highnoon
A18: 14 | C18: (B) Antispasmodic/Anticholinergic
A19: 15 | B19: Tab | C19: Hyoscine-N-Butyl Bromide 10mg OR Hyoscine-N-Butyl Bromide 10mg | D19: 100's | JK19: Buscopan Plus | JL19: Tab | JM19: 100's | JN19: 390 | JO19: 331.5 | JP19: =100-JO19/JN19*100 -> 15 | JQ19: Martin Dow
A20: 16 | B20: Syp | C20: Hyoscine-N-Butyl Bromide 10mg OR Hyoscine-N-Butyl Bromide 10mg+Metamezole 50mg | D20: 60ml
A21: 17 | B21: Tab | C21: Mebeverine 135mg | D21: 30's | BI21: Spasler Neo | BJ21: Tab | BK21: 30's | BL21: 183.69 | BM21: 140.526 | BN21: =100-BM21/BL21*100 -> 23.49828515 | BO21: AGP | BT21: =100-BS21/BR21*100 ->  | NE21: Zeespa 135mg | NF21: Tab | NG21: 30's | NH21: 126 | NI21: 82.75 | NJ21: =100-NI21/NH21*100 -> 34.32539683 | NK21: Shaigan Pharma | NS21: Colofac 135mg | NT21: Tab | NU21: 30's | NV21: 236.84 | NW21: 201.31 | NX21: =100-NW21/NV21*100 -> 15.0016889 | NY21: Abbott LAB
A22: 18 | B22: Cap | C22: Mebeverine 200mg SR | D22: 30's | MC22: Mebever MR 200mg | MD22: Cap | ME22: 10's | MF22: 140 | MG22: 85 | MH22: 39.28571429 | MI22: Getz Pharma
A23: 19 | B23: Inj. | C23: Trimethylphloroglucinol+Phloroglucinol80mg | D23: 6's | BI23: Anafortan Plus | BJ23: Inj | BK23: 6's | BL23: 363.2 | BM23: 262.41 | BN23: 27.75055066 | BO23: AGP | BU23: =100-BT23/BS23*100 ->  | DF23: Spasrid | DG23: inj | DH23: 6's | DI23: 230 | DJ23: 125 | DK23: =100-DJ23/DI23*100 -> 45.65217391 | DL23: BH
A24: 20 | B24: Tab | C24: Trimethylphloroglucinol+Phloroglucinol 40mg | D24: 30's | BI24: Anafortan Plus | BJ24: Tab | BK24: 30's | BL24: 367.4 | BM24: 281.061 | BN24: 23.5 | BO24: AGP
A25: 21 | C25: (C) Anti-Diarrhoeals
A26: 22 | B26: Susp | C26: Kaolin Pectin | D26: 90ml
A27: 23 | B27: Sachet | C27: ORS contains: NaCl 3.5gm, Sod. Citrate 2.9gm, KCI. 1.5gm, Dextrose Anhydrous 20gm | D27: 40's | E27: Peditral Sach | F27: Sachet | G27: 1's | H27: 18 | I27: 13 | J27: =100-I27/H27*100 -> 27.77777778 | K27: Searle Pharma | EA27: Orasal-F | EB27: Sachet | EC27: 20's | ED27: 200 | EE27: 110 | EF27: =100-EE27/ED27*100 -> 45 | EG27: Wilson's | HU27: ORSK | HV27: Sachet | HW27: 20's | HX27: 300 | HY27: 155 | HZ27: =100-HY27/HX27*100 -> 48.33333333 | IA27: Kohinoor Ind | PI27: Oragil | PJ27: Sachet | PK27: 20's | PL27: 220 | PM27: 129 | PN27: =100-PM27/PL27*100 -> 41.36363636 | PO27: Glitz Pharma | QD27: Valosal | QE27: Sachet | QF27: 20's | QG27: 200 | QH27: 164.9 | QI27: =100-QH27/QG27*100 -> 17.55 | QJ27: Valor Pharma
A28: 24 | B28: Powder | C28: Dioctahedral Smectite 3 gm | D28: Sachet | Z28: Diosecta 3gm | AA28: Sachet | AB28: 30's | AC28: 318 | AD28: 237.86 | AE28: =100-AD28/AC28*100 -> 25.20125786 | AF28: W.Wards | BB28: Doctile Sach | BC28: Sachet | BD28: 30's | BE28: 333.81 | BF28: 229.5 | BG28: 31.24831491 | BH28: Sami
A29: 25 | B29: Tab | C29: Diphenoxylate HCL 2.5 mg+Atropine Sulphate 25 mcg | D29: 10's
A30: 26 | B30: Susp | C30: Zinc Sulphate 20mg/5ml Suspension | D30: 60ml | E30: Diazinc 20mg | F30: Syrup | G30: 60ml | H30: 62 | I30: 35 | J30: 43.5483871 | K30: Searle Pharma | DF30: ZincDay | DG30: Syp | DH30: 60ml | DI30: 60.86 | DJ30: 35.7 | DK30: =100-DJ30/DI30*100 -> 41.34078212 | DL30: BH | EO30: Zink-UP OD | EP30: Susp | EQ30: 60ml | ER30: 69 | ES30: 43.99 | ET30: =100-ES30/ER30*100 -> 36.24637681 | EU30: Indus Pharma | HU30: ZincFort | HV30: Susp | HW30: 60ml | HX30: 60 | HY30: 28.75 | HZ30: =100-HY30/HX30*100 -> 52.08333333 | IA30: Sims Pharma | OG30: Orazinc | OH30: Syp | OI30: 60ml | OJ30: 60 | OK30: 49 | OL30: =100-OK30/OJ30*100 -> 18.33333333 | OM30: Amson Vaccines & Pharma | PI30: Ziglit | PJ30: Susp | PK30: 60ml | PL30: 50 | PM30: 28.5 | PN30: =100-PM30/PL30*100 -> 43 | PO30: Glitz Pharma
A31: 27 | C31: (D) Anti-Amoebics
A32: 28' | B32: Tab | C32: Diloxanide Fuorate 250mg + Metronidazole 200mg | D32: 15's
A33: 28 | B33: Tab | C33: Diloxanide Fuorate 500mg + Metronidazole 400mg | D33: 15's | NS33: Entamizole DS | NT33: Tab | NU33: 15's | NV33: 76.62 | NW33: 65.13 | NX33: =100-NW33/NV33*100 -> 14.99608457 | NY33: Abbott LAB
A34: 29 | B34: Susp | C34: Diloxanidefuroate 250mg + Metronidazole 200mg/10ml | D34: 60ml | NS34: Entamizole | NT34: Susp | NU34: 90ml | NV34: 55.72 | NW34: 47.36 | NX34: 15.00358938 | NY34: Abbott LAB
A35: 30 | B35: Tab | C35: Metronidazole 200mg | D35: 200's | E35: Metrozine 200mg | F35: Tab | G35: 100's | H35: 113 | I35: 96.05 | J35: 15 | K35: Searle Pharma
A36: 31 | B36: Tab | C36: Metronidazole 400mg | D36: 200's | E36: Metrozine 400mg | F36: Tab | G36: 100's | H36: 169 | I36: 125 | J36: 26.03550296 | K36: Searle Pharma | IW36: Flagyl 400mg | IX36: Tab | IY36: 200's | IZ36: 315.1 | JA36: 267.83 | JB36: =100-JA36/IZ36*100 -> 15.0015868 | JC36: Sanofi Aventis | LH36: Gramex 400mg | LI36: Tab | LJ36: 100's | LK36: 162.85 | LL36: 124.58 | LM36: =100-LL36/LK36*100 -> 23.50015352 | LN36: Platinum Pharma | PI36: Granid | PJ36: Tab | PK36: 100's | PL36: 150 | PM36: 127.5 | PN36: =100-PM36/PL36*100 -> 15 | PO36: Glitz Pharma
A37: 32 | B37: Susp | C37: Metronidazole 200mg/5ml | D37: 60ml | E37: Metrozine Sus | F37: Susp | G37: 90ml | H37: 51 | I37: 38.15 | J37: 25.19607843 | K37: Searle Pharma | II37: Metrolis 200mg/5ml | IJ37: Susp | IK37: 60ml | IL37: 34.29 | IM37: 29.15 | IN37: =100-IM37/IL37*100 -> 14.98979294 | IO37: Tiltis Pharma | QR37: Insta Care | QS37: Susp | QT37: 60ml | QU37: 32 | QV37: 24.64 | QW37: =100-QV37/QU37*100 -> 23 | QX37: Care Pharma
A38: 33 | B38: Infusion | C38: Metronidazole 500mg/100ml | D38: 100ml | E38: Metrozine IV RFU | F38: INF | G38: 100ml | H38: 79 | I38: 63.79 | J38: 19.25316456 | K38: Searle Pharma | CY38: Flazol 500mg/100ml | CZ38: Inj | DA38: 1's | DB38: 79.12 | DC38: 49.9 | DD38: =100-DC38/DB38*100 -> 36.93124368 | DE38: Bosch | HU38: Zee Met | HV38: Inf | HW38: 100ml | HX38: 67 | HY38: 28.25 | HZ38: =100-HY38/HX38*100 -> 57.8358209 | IA38: Shahzeb Pharma | IW38: Flagyl 500mg | IX38: Inj | IY38: 100ml | IZ38: 93.94 | JA38: 79.84 | JB38: =100-JA38/IZ38*100 -> 15.00958058 | JC38: Sanofi Aventis | NL38: Nida 500mg | NM38: Inj | NN38: 1's | NO38: 78 | NP38: 47 | NQ38: =100-NP38/NO38*100 -> 39.74358974 | NR38: GMP Pharma
A39: 34 | C39: (E) Anthelmentics
A40: 35 | B40: Susp | C40: Albendazole 100mg/5ml | D40: 10ml | KM40: Zentel | KN40: Susp | KO40: 1's | KP40: 22.75 | KQ40: 18.76 | KR40: =100-KQ40/KP40*100 -> 17.53846154 | KS40: Gsk
A41: 36 | B41: Tab | C41: Albendazole 200mg | D41: 2's | GL41: Benda 200mg | GM41: Tab | GN41: 2's | GO41: 14.45 | GP41: 14 | GQ41: =100-GP41/GO41*100 -> 3.114186851 | GR41: Pharmedic | KM41: Zentel | KN41: Tab | KO41: 2's | KP41: 20.94 | KQ41: 17.26 | KR41: 17.57402101 | KS41: Gsk | PI41: Aliz | PJ41: Tab | PK41: 2's | PL41: 17 | PM41: 13.95 | PN41: =100-PM41/PL41*100 -> 17.94117647 | PO41: Glitz Pharma | QD41: Vapalac | QE41: Tab | QF41: 2's | QG41: 10 | QH41: 8.25 | QI41: =100-QH41/QG41*100 -> 17.5 | QJ41: Valor Pharma
A42: 37 | B42: Tab | C42: Mebendazole 100mg | D42: 30's | CK42: Vermox 100mg | CL42: Tab | CM42: 30's | CN42: 269.21 | CO42: 205.95 | CP42: =100-CO42/CN42*100 -> 23.49838416 | CQ42: Aspin Pharma | QD42: Mendazole 100mg | QE42: Tab | QF42: 60's | QG42: 175 | QH42: 144.29 | QI42: 17.54857143 | QJ42: Valor Pharma
A43: 38 | B43: Susp | C43: Mebendazole 100mg/5ml | D43: 30ml | Z43: Vermol Susp | AA43: Susp | AB43: 30ml | AC43: 40 | AD43: 29.92 | AE43: =100-AD43/AC43*100 -> 25.2 | AF43: W.Wards | CK43: Vermox | CL43: Syp | CM43: 30ml | CN43: 41.41 | CO43: 35.2 | CP43: 14.99637769 | CQ43: Aspin Pharma
A44: 39 | B44: Tab | C44: Mebendazole 500 mg | D44: 12's | Z44: Vermol SD | AA44: Tab | AB44: 1's | AC44: 21.5 | AD44: 16.09 | AE44: 25.1627907 | AF44: W.Wards | CK44: Vermox 500mg | CL44: Tab | CM44: 12's | CN44: 269.21 | CO44: 212.81 | CP44: 20.95018759 | CQ44: Aspin Pharma | QD44: Mendazole 500mg | QE44: Tab | QF44: 1's | QG44: 15 | QH44: 12.37 | QI44: =100-QH44/QG44*100 -> 17.53333333 | QJ44: Valor Pharma
A45: 40 | C45: (F) Laxatives/Purgatives/Lubricants/
A46: 41 | B46: Tab | C46: Bisacodyl 5mg | D46: 100's
A47: 42 | B47: Cap | C47: Calcium Dobesilate 500mg | D47: 30's
A48: 43 | B48: Liq | C48: Kleen Enema/Instant/Enema Ready Liq. Sod. Bisulphate 19.2mg. Sod. Phosphate 7.2mg/120ml | D48: 120ml
A49: 44 | B49: Susp | C49: Lactulose 3.35mg/5ml | D49: 120ml | JY49: B-lact | JZ49: Syp | KA49: 120ml | KB49: 154.64 | KC49: 89 | KD49: =100-KC49/KB49*100 -> 42.44697362 | KE49: Brooks | MC49: Lilac | MD49: Syp | ME49: 120ml | MF49: 150 | MG49: 88.99 | MH49: 40.67333333 | MI49: Getz Pharma | NS49: Duphalac | NT49: Syp | NU49: 120ml | NV49: 170.92 | NW49: 138 | NX49: =100-NW49/NV49*100 -> 19.26047274 | NY49: Abbott LAB | ON49: Kolac | OO49: Syp | OP49: 120ml | OQ49: 148 | OR49: 99.38 | OS49: =100-OR49/OQ49*100 -> 32.85135135 | OT49: Asian Contiental | QR49: Lactocare | QS49: Susp | QT49: 120ml | QU49: 170 | QV49: 98 | QW49: =100-QV49/QU49*100 -> 42.35294118 | QX49: Care Pharma
A50: 45 | B50: Liq | C50: Magnesium Hydroxide 75% V/V + Liq Paraffin 25 % V/ V | D50: 120ml | NS50: Cremafin | NT50: Susp | NU50: 120ml | NV50: 36.42 | NW50: 30.96 | NX50: 14.99176277 | NY50: Abbott LAB
A51: 46 | B51: Drops | C51: Sod. Picosuphate 7.5mg | D51: 15ml | DM51: Skilax | DN51: Drop | DO51: 1'S | DP51: 36 | DQ51: 29 | DR51: =100-DQ51/DP51*100 -> 19.44444444 | DS51: Highnoon
A52: 47 | B52: Supos | C52: Glycerine Suppository(Adult& Child) | D52: 12's
A53: 48 | C53: (G) Drugs Acting on Liver:
A54: 49 | B54: Infusion | C54: Betaine Glucourinate, Diethanolamine Gluconate & Nicotinamide | D54: 10ml
A55: 50 | B55: Syp | C55: Betaine Glucourinate, Diethanolamine Gluconate & Nicotinamide | D55: 60ml
A56: 51 | B56: Infusion | C56: Ornithine Aspartate 500mg/5ml. | D56: 5ml/Amp
A57: 52 | B57: Syp | C57: Ornithine Aspartate 60mg, Nicotinamide 4.8mg, Riboflavin-5 Phosphate Sod. 0.153mg/ml | D57: 120ml | JY57: Hepa--Merz | JZ57: Syp | KA57: 120ml | KB57: 150.95 | KC57: 112 | KD57: =100-KC57/KB57*100 -> 25.80324611 | KE57: Brooks
A58: 53 | B58: Tab | C58: Pancreatin 210 P.U. + Bromelain 35,000 PU, Dimethylopysiloxane 50mg+Sodium Dehydrocholate 20mg + Metoclopramide 6mg | D58: 30's
A59: 54 | B59: Syp | C59: Silymarine | D59: 60ml | NS59: Silliver | NT59: Susp | NU59: 60ml | NV59: 77.52 | NW59: 65.89 | NX59: =100-NW59/NV59*100 -> 15.00257998 | NY59: Abbott LAB | OG59: Silimarin | OH59: Syp | OI59: 60ml | OJ59: 62.3 | OK59: 52.96 | OL59: =100-OK59/OJ59*100 -> 14.99197432 | OM59: Amson Vaccines & Pharma
A60: 55 | B60: Tab | C60: Silymarine 200 mg | D60: 30's | NS60: Silliver | NT60: Tab | NU60: 30's | NV60: 206.91 | NW60: 175.87 | NX60: 15.00169156 | NY60: Abbott LAB | OG60: Silimarin | OH60: Tab | OI60: 20's | OJ60: 245 | OK60: 115 | OL60: 53.06122449 | OM60: Amson Vaccines & Pharma
A61: 56 | B61: Syp | C61: Silymarine 105 mg +Vitamine B-1 8mg +B-12 25mcg +Calcium Pentothenate 16 mg, B-2 8mg ,B-6 8mg,nicotinamide24mg/ 5ml | D61: 90ml | AG61: Heptocam | AH61: Syp | AI61: 60ml/120ml | AJ61: 71.50/126.5 | AK61: 53.49/94.63 | AL61: 25.2 | AM61: Chas a Mendoza
A62: 57 | C62: (H) Anti-Emetic/Anti-Nauseants:
A63: 58 | B63: Inj. | C63: Chlorpromazine HCL 25mg/ml (2ml Amp) | D63: Amp
A64: 59 | B64: Syp | C64: Dimenhydrinate 12.5mg/4ml | D64: 60ml | E64: Gravinate Syp | F64: Syp | G64: 60ml | H64: 40 | I64: 32.3 | J64: 19.25 | K64: Searle Pharma
A65: 60 | B65: Inj. | C65: Dimenhydrinate 50mg | D65: Inj | E65: Gravinate 50mg Inj | F65: Inj | G65: 25's | H65: 253 | I65: 215.05 | J65: 15 | K65: Searle Pharma | NL65: Dirinate | NM65: Inj | NN65: 25's | NO65: 150 | NP65: 127.5 | NQ65: =100-NP65/NO65*100 -> 15 | NR65: Elite Pharma
A66: 61 | B66: Tab | C66: Dimenhydrinate 50mg | D66: 100's | E66: Gravinate 50mg | F66: Tab | G66: 100's | H66: 110 | I66: 87 | J66: 20.90909091 | K66: Searle Pharma
A67: 62 | B67: Tab | C67: Domparidon 10mg | D67: 30's | AG67: Nomit 10mg | AH67: Tab | AI67: 50's | AJ67: 215 | AK67: 160.82 | AL67: =100-AK67/AJ67*100 -> 25.2 | AM67: Chas a Mendoza | CK67: Motilium 10mg | CL67: Tab | CM67: 50's | CN67: 222.61 | CO67: 166.51 | CP67: =100-CO67/CN67*100 -> 25.20102421 | CQ67: Aspin Pharma | DF67: Domel | DG67: Tab | DH67: 50's | DI67: 215 | DJ67: 49.2 | DK67: =100-DJ67/DI67*100 -> 77.11627907 | DL67: BH | DT67: Domflash ORO | DU67: Tab | DV67: 50's | DW67: 180 | DX67: 70 | DY67: =100-DX67/DW67*100 -> 61.11111111 | DZ67: Next Pharma | EV67: Nv-Nil | EW67: Tab | EX67: 50's | EY67: 215 | EZ67: 49.5 | FA67: =100-EZ67/EY67*100 -> 76.97674419 | FB67: Saydon Pharma | JD67: Dovomit | JE67: Tab | JF67: 50's | JG67: 210 | JH67: 99 | JI67: =100-JH67/JG67*100 -> 52.85714286 | JJ67: Novamed | LA67: Dompro | LB67: Tab | LC67: 50's | LD67: 215 | LE67: 60 | LF67: =100-LE67/LD67*100 -> 72.09302326 | LG67: Unisons Pharma | MJ67: Typerdon 10mg | MK67: Tab | ML67: 30's | MM67: 129 | MN67: 29.9 | MO67: =100-MN67/MM67*100 -> 76.82170543 | MP67: KCL Pharma | MV67: =100-MU67/MT67*100 -> 
A68: 63 | B68: Tab | C68: Domparidon 10mg &Cinrizine 1mg | D68: 20's
A69: 64 | B69: Susp | C69: Domparidon 5mg/5ml | D69: 120ml | AG69: Nomit Orl | AH69: Susp | AI69: 60ml | AJ69: 42 | AK69: 31.42 | AL69: =100-AK69/AJ69*100 -> 25.19047619 | AM69: Chas a Mendoza | CK69: Motilium 10mg | CL69: Syp | CM69: 120ml | CN69: 86.97 | CO69: 68.75 | CP69: =100-CO69/CN69*100 -> 20.94975279 | CQ69: Aspin Pharma | DF69: Domel | DG69: Susp | DH69: 60ml | DI69: 42 | DJ69: 25 | DK69: =100-DJ69/DI69*100 -> 40.47619048 | DL69: BH | LA69: Dontis | LB69: Susp | LC69: 120ml | LD69: 84 | LE69: 42 | LF69: =100-LE69/LD69*100 -> 50 | LG69: Wimits Pharma | QR69: Domycare | QS69: Susp | QT69: 120ml | QU69: 84 | QV69: 48 | QW69: =100-QV69/QU69*100 -> 42.85714286 | QX69: Care Pharma
A70: 65 | B70: Tab | C70: Itopride 50mg | D70: 10's | S70: Nogerd 50mg | T70: Tab | U70: 10's | V70: 160 | W70: 100 | X70: =100-W70/V70*100 -> 37.5 | Y70: Helix | BB70: ITP 50mg | BC70: Tab | BD70: 10's | BE70: 160 | BF70: 99 | BG70: =100-BF70/BE70*100 -> 38.125 | BH70: Sami | CD70: Itollium 50mg | CE70: Tab | CF70: 10's | CG70: 165 | CH70: 119.21 | CI70: =100-CH70/CG70*100 -> 27.75151515 | CJ70: Pharmatec | GS70: Itotab 50mg | GT70: Tab | GU70: 10's | GV70: 150 | GW70: 23.78 | GX70: =100-GW70/GV70*100 -> 84.14666667 | GY70: Hiranis Pharma | IB70: Itcan 50mg | IC70: Tab | ID70: 10's | IE70: 180 | IF70: 70 | IG70: =100-IF70/IE70*100 -> 61.11111111 | IH70: Fynk Pharma | KM70: Dynetic 50mg | KN70: Tab | KO70: 10's | KP70: 120 | KQ70: 32 | KR70: =100-KQ70/KP70*100 -> 73.33333333 | KS70: Ferozsons Labs | MC70: Regasta 50mg | MD70: Tab | ME70: 10's | MF70: 188 | MG70: 34.5 | MH70: =100-MG70/MF70*100 -> 81.64893617 | MI70: Getz Pharma | NS70: Ganaton 50mg | NT70: Tab | NU70: 30's | NV70: 658.17 | NW70: 559.44 | NX70: =100-NW70/NV70*100 -> 15.00068371 | NY70: Abbott LAB
A71: 66 | B71: Tab | C71: Meclazine 2 HCL 25mg + Vit B6 50mg | D71: 10's
A72: 67' | B72: Tab | C72: Metoclopramide 10mg | D72: 100's
A73: 67 | B73: Inj | C73: Metoclopramide 10mg | D73: 10'S | EO73: Metoclon | EP73: Inj | EQ73: 20's | ER73: 410 | ES73: 272 | ET73: =100-ES73/ER73*100 -> 33.65853659 | EU73: Indus Pharma | NL73: Alpomide | NM73: Inj | NN73: 100's | NO73: 670.9 | NP73: 450 | NQ73: =100-NP73/NO73*100 -> 32.92592041 | NR73: Elite Pharma
A74: 68 | B74: Inj | C74: Ondenstron 8mg injection | D74: amp | EH74: Adosetron 8MG | EI74: Inj | EJ74: 5's | EK74: 2585 | EL74: 300 | EM74: =100-EL74/EK74*100 -> 88.39458414 | EN74: Searle | GL74: Onset 8mg | GM74: Inj | GN74: 1's | GO74: 92.65 | GP74: 44.35 | GQ74: =100-GP74/GO74*100 -> 52.13167836 | GR74: Pharmedic
A75: 69 | B75: inj | C75: Prochlorperazine 12.5mg/ml | D75: 10's
A76: 70 | B76: Tab | C76: Prochlorperazine 5mg | D76: 500's
A77: 71 | B77: Cap | C77: Tropisetron 5mg Caps | D77: 5's | IB77: Antem 5mg | IC77: Cap | ID77: 5's | IE77: 4100 | IF77: 3485 | IG77: =100-IF77/IE77*100 -> 15 | IH77: Neutro Pharma
A78: 72 | B78: Inj | C78: Tropisetron 5mg/5ml | D78: 1's | IB78: Antem 5mg | IC78: Inj | ID78: 1's | IE78: 1130 | IF78: 960.5 | IG78: 15 | IH78: Neutro Pharma
A79: 73 | C79: (I) Drugs Acting on Cardiovascular System:
A80: 74 | B80: Tab | C80: Aliskirin 300mg | D80: 10's
A81: 75 | B81: inj | C81: Amiderone HCL 150mg/3ml | D81: Amp
A82: 76 | B82: Inj. | C82: Adrenaline Injection 1:1000 | D82: Amp
A83: 77 | B83: Tab | C83: Amiderone HCL 200mg | D83: 30's | IW83: Cordarone | IX83: Tab | IY83: 30's | IZ83: 533.76 | JA83: 453.7 | JB83: 14.9992506 | JC83: Sanofi Aventis
A84: 78 | B84: Tab | C84: Amlodipine Besylate 5mg | D84: 20's | L84: Hypotin 5mg | M84: Tab | N84: 20's | O84: 108.72 | P84: 39.62 | Q84: =100-P84/O84*100 -> 63.55776306 | R84: Saffron | CD84: Amlocard 5mg | CE84: Tab | CF84: 10's | CG84: 160 | CH84: 108.8 | CI84: =100-CH84/CG84*100 -> 32 | CJ84: Pharmatec | CY84: Caloc 5mg | CZ84: Tab | DA84: 20's | DB84: 80 | DC84: 54.4 | DD84: =100-DC84/DB84*100 -> 32 | DE84: Bosch | DF84: Ampress 5mg | DG84: Tab | DH84: 20's | DI84: 140 | DJ84: 34 | DK84: =100-DJ84/DI84*100 -> 75.71428571 | DL84: BH | EV84: Ca-B 5mg | EW84: Tab | EX84: 20's | EY84: 123.42 | EZ84: 24.8 | FA84: =100-EZ84/EY84*100 -> 79.90601199 | FB84: Saydon Pharma | GL84: Vasodil 5mg | GM84: Tab | GN84: 20's | GO84: 127.5 | GP84: 31 | GQ84: =100-GP84/GO84*100 -> 75.68627451 | GR84: Pharmedic | HN84: Norvasic 5mg | HO84: Tab | HP84: 30's | HQ84: 358 | HR84: 255.68 | HS84: =100-HR84/HQ84*100 -> 28.58100559 | HT84: Pfizer Pakistan | IB84: Norsap 5mg | IC84: Tab | ID84: 20's | IE84: 330 | IF84: 280.5 | IG84: =100-IF84/IE84*100 -> 15 | IH84: Sapient Pharma | JD84: Amilip 5mg | JE84: Tab | JF84: 20's | JG84: 105 | JH84: 35.6 | JI84: =100-JH84/JG84*100 -> 66.0952381 | JJ84: Novaned | JK84: Lodopin 5mg | JL84: Tab | JM84: 20's | JN84: 93.48 | JO84: 68.94 | JP84: =100-JO84/JN84*100 -> 26.25160462 | JQ84: Martin Dow | JY84: Coram 5mg | JZ84: Tab | KA84: 20's | KB84: 75 | KC84: 35 | KD84: =100-KC84/KB84*100 -> 53.33333333 | KE84: Brooks | OG84: Vespin 5mg | OH84: Tab | OI84: 20's | OJ84: 99 | OK84: 63.75 | OL84: =100-OK84/OJ84*100 -> 35.60606061 | OM84: Amson Vaccines & Pharma | PP84: Amdipine 5mg | PQ84: Tab | PR84: 30's | PS84: 126.78 | PT84: 49.45 | PU84: =100-PT84/PS84*100 -> 60.99542515 | PV84: Nabiqasim
A85: 79 | B85: Tab | C85: Amlodipine Besylate10mg | D85: 20's | L85: Hypotin 10mg | M85: Tab | N85: 20's | O85: 144.96 | P85: 51.16 | Q85: 64.70750552 | R85: Saffron | BB85: Onato 10mg | BC85: Tab | BD85: 20's | BE85: 102.51 | BF85: 50.6 | BG85: 50.63896205 | BH85: Sami | CD85: Amlocard 10mg | CE85: Tab | CF85: 10's | CG85: 250 | CH85: 170 | CI85: 32 | CJ85: Pharmatec | CY85: Caloc 10mg | CZ85: Tab | DA85: 20's | DB85: 150 | DC85: 102 | DD85: 32 | DE85: Bosch | DF85: Ampress 10mg | DG85: Tab | DH85: 20's | DI85: 280 | DJ85: 63 | DK85: 77.5 | DL85: BH | EV85: Ca-B 10mg | EW85: Tab | EX85: 20's | EY85: 220 | EZ85: 29.88 | FA85: 86.41818182 | FB85: Saydon Pharma | HN85: Norvasic 10mg | HO85: Tab | HP85: 30's | HQ85: 700 | HR85: 500 | HS85: 28.57142857 | HT85: Pfizer Pakistan | JD85: Amilip 10mg | JE85: Tab | JF85: 20's | JG85: 199 | JH85: 43 | JI85: 78.3919598 | JJ85: Novaned | JK85: Lodopin 10mg | JL85: Tab | JM85: 20's | JN85: 120.36 | JO85: 88.77 | JP85: 26.24626122 | JQ85: Martin Dow | JY85: Coram 10mg | JZ85: Tab | KA85: 20's | KB85: 150 | KC85: 45 | KD85: 70 | KE85: Brooks | PP85: Amdipine 10mg | PQ85: Tab | PR85: 30's | PS85: 228.22 | PT85: 65.5 | PU85: 71.29962317 | PV85: Nabiqasim
A86: 80 | B86: Tab | C86: Amlodipine 5mg+Atorvastatin 10mg | D86: 10's | IB86: Vastapine 5/10mg | IC86: Tab | ID86: 20's | IE86: 330 | IF86: 280.5 | IG86: =100-IF86/IE86*100 -> 15 | IH86: Welmark Pharma | PP86: AM Descol 5/10mg | PQ86: Tab | PR86: 7's | PS86: 115 | PT86: 45.95 | PU86: 60.04347826 | PV86: Nabiqasim
A87: 81 | B87: Tab | C87: Amlodipine5mg+Atorvastatin20mg/20mg | D87: 10's | IB87: Vastapine 5/20mg | IC87: Tab | ID87: 20's | IE87: 500 | IF87: 425 | IG87: 15 | IH87: Welmark Pharma
A88: 82 | B88: Tab | C88: Amlodipine5mg+valsartan 80mg | D88: 28's | E88: Extor 5/80mg | F88: Tab | G88: 14's | H88: 270.3 | I88: 119 | J88: =100-I88/H88*100 -> 55.97484277 | K88: Searle Pharma | L88: Prestor 5/80mg | M88: Tab | N88: 14's | O88: 238 | P88: 80.12 | Q88: =100-P88/O88*100 -> 66.33613445 | R88: Saffron | AU88: Avsar 5/80mg | AV88: Tab | AW88: 14's | AX88: 252 | AY88: 82.6 | AZ88: =100-AY88/AX88*100 -> 67.22222222 | BA88: PharmEvo | DF88: AV-Sartan 5/80MG | DG88: Tab | DH88: 14's | DI88: 204.16 | DJ88: 78 | DK88: =100-DJ88/DI88*100 -> 61.79467085 | DL88: BH | GZ88: Exforge 5/80mg | HA88: Tab | HB88: 28's | HC88: 1288 | HD88: 985.32 | HE88: =100-HD88/HC88*100 -> 23.5 | HF88: Novartis | IB88: Silodipine 5/80mg | IC88: Tab | ID88: 14'S | IE88: 330 | IF88: 160 | IG88: 51.51515152 | IH88: Siam Pharma | MX88: Amstan 5/80mg | MY88: Tab | MZ88: 14's | NA88: 265 | NB88: 213.92 | NC88: =100-NB88/NA88*100 -> 19.2754717 | ND88: Scilife Pharma
A89: 83 | B89: Tab | C89: Aspirin 150mg | D89: 30's | DM89: Loprin 150mg | DN89: Tab | DO89: 30's | DP89: 44 | DQ89: 34 | DR89: =100-DQ89/DP89*100 -> 22.72727273 | DS89: Highnoon
A90: 84 | B90: Tab | C90: Aspirin 75mg | D90: 30's | DM90: Loprin 75mg | DN90: Tab | DO90: 30's | DP90: 33 | DQ90: 20 | DR90: 39.39393939 | DS90: Highnoon
A91: 85 | B91: Tab | C91: Atenolol 50mg | D91: 20's | CY91: Atilin 50mg | CZ91: Tab | DA91: 20's | DB91: 70 | DC91: 47 | DD91: =100-DC91/DB91*100 -> 32.85714286 | DE91: Bosch | DM91: Blockium 50mg | DN91: Tab | DO91: 30's | DP91: 175 | DQ91: 100 | DR91: 42.85714286 | DS91: Highnoon | EV91: Sydlol 50mg | EW91: Tab | EX91: 20's | EY91: 65 | EZ91: 24.8 | FA91: =100-EZ91/EY91*100 -> 61.84615385 | FB91: Saydon Pharma | GL91: Atelor 50mg | GM91: Tab | GN91: 20's | GO91: 60.35 | GP91: 37 | GQ91: =100-GP91/GO91*100 -> 38.69096935 | GR91: Pharmedic | IP91: Netel 50mg | IQ91: Tab | IR91: 20's | IS91: 74 | IT91: 19 | IU91: =100-IT91/IS91*100 -> 74.32432432 | IV91: 3S Pharma | JD91: B-Loc 50mg | JE91: Tab | JF91: 20's | JG91: 74 | JH91: 21.6 | JI91: =100-JH91/JG91*100 -> 70.81081081 | JJ91: Novamed | KM91: Atenorm 50mg | KN91: Tab | KO91: 14's | KP91: 36.8 | KQ91: 21 | KR91: =100-KQ91/KP91*100 -> 42.93478261 | KS91: Ferozsons Labs | PP91: Normitab 50mg | PQ91: Tab | PR91: 28's | PS91: 105.49 | PT91: 63 | PU91: =100-PT91/PS91*100 -> 40.2786994 | PV91: Nabiqasim
A92: 86 | B92: Tab | C92: Atorvastatin 10mg | D92: 10's | AN92: Tavist 10mg | AO92: Tab | AP92: 10's | AQ92: 58.82 | AR92: 30 | AS92: =100-AR92/AQ92*100 -> 48.99693982 | AT92: Macter | AU92: Mypro 10MG | AV92: Tab | AW92: 10's | AX92: 165 | AY92: 66 | AZ92: 60 | BA92: Pharmevo | CD92: Atorva 10mg | CE92: Tab | CF92: 10's | CG92: 180 | CH92: 137.7 | CI92: =100-CH92/CG92*100 -> 23.5 | CJ92: Pharmatec | CY92: Orva 10mg | CZ92: Tab | DA92: 10's | DB92: 150 | DC92: 95.63 | DD92: 36.24666667 | DE92: Bosch | DF92: Sensicon 10mg | DG92: Tab | DH92: 10's | DI92: 144.95 | DJ92: 30.15 | DK92: =100-DJ92/DI92*100 -> 79.19972404 | DL92: BH | DM92: Lipirex 10mg | DN92: Tab | DO92: 10's | DP92: 170 | DQ92: 28 | DR92: 83.52941176 | DS92: Highnoon | HN92: Lipitor 10mg | HO92: Tab | HP92: 10's | HQ92: 662.81 | HR92: 394.32 | HS92: =100-HR92/HQ92*100 -> 40.50783784 | HT92: Pfizer Pakistan | IB92: Xtor 10mg | IC92: Tab | ID92: 10's | IE92: 150 | IF92: 127.5 | IG92: =100-IF92/IE92*100 -> 15 | IH92: Paramount | JD92: Lipilow 10mg | JE92: Tab | JF92: 10's | JG92: 140 | JH92: 32 | JI92: 77.14285714 | JJ92: Novamed | MC92: Lipiget 10mg | MD92: Tab | ME92: 10's | MF92: 175 | MG92: 67 | MH92: 61.71428571 | MI92: Getz Pharma
A93: 87 | B93: Tab | C93: Atorvastatin 20mg | D93: 10's | AN93: Tavist 20mg | AO93: Tab | AP93: 10's | AQ93: 105.88 | AR93: 55 | AS93: 48.05440121 | AT93: Macter | AU93: Mypro 20MG | AV93: Tab | AW93: 10's | AX93: 299 | AY93: 118 | AZ93: 60.53511706 | BA93: Pharmevo | BW93: Raytor 20mg | BX93: Tab | BY93: 10's | BZ93: 220 | CA93: 102.85 | CB93: =100-CA93/BZ93*100 -> 53.25 | CC93: Ray Pharma | CD93: Atorva 20mg | CE93: Tab | CF93: 10's | CG93: 330 | CH93: 252.45 | CI93: 23.5 | CJ93: Pharmatec | CY93: Orva 20mg | CZ93: Tab | DA93: 10's | DB93: 250 | DC93: 159.38 | DD93: 36.248 | DE93: Bosch | DF93: Sensicon 20mg | DG93: Tab | DH93: 10's | DI93: 240 | DJ93: 50.74 | DK93: 78.85833333 | DL93: BH | DM93: Lipirex 20mg | DN93: Tab | DO93: 10's | DP93: 310 | DQ93: 45 | DR93: 85.48387097 | DS93: Highnoon | IB93: Xtor 20mg | IC93: Tab | ID93: 10's | IE93: 280 | IF93: 238 | IG93: 15 | IH93: Paramount | JD93: Lipilow 20mg | JE93: Tab | JF93: 10's | JG93: 240 | JH93: 44.5 | JI93: 81.45833333 | JJ93: Novamed | LA93: Univastin 20mg | LB93: Tab | LC93: 10's | LD93: 366 | LE93: 73 | LF93: =100-LE93/LD93*100 -> 80.05464481 | LG93: Unisons Pharma | MC93: Lipiget 20mg | MD93: Tab | ME93: 10's | MF93: 330 | MG93: 45 | MH93: 86.36363636 | MI93: Getz Pharma | PP93: Descol 20mg | PQ93: Tab | PR93: 10's | PS93: 190 | PT93: 38.95 | PU93: =100-PT93/PS93*100 -> 79.5 | PV93: Nabiqasim
A94: 88 | B94: Tab | C94: Atorvastatin 40mg | D94: 10's | AU94: Mypro 40MG | AV94: Tab | AW94: 10's | AX94: 399 | AY94: 161 | AZ94: 59.64912281 | BA94: Pharmevo | CD94: Atorva 40mg | CE94: Tab | CF94: 10's | CG94: 450 | CH94: 344.25 | CI94: 23.5 | CJ94: Pharmatec | CY94: Orva 40mg | CZ94: Tab | DA94: 10's | DB94: 350 | DC94: 223.13 | DD94: 36.24857143 | DE94: Bosch | DM94: Lipirex 40mg | DN94: Tab | DO94: 10's | DP94: 400 | DQ94: 90 | DR94: 77.5 | DS94: Highnoon | IB94: Xtor 40mg | IC94: Tab | ID94: 10's | IE94: 360 | IF94: 306 | IG94: 15 | IH94: Paramount | MC94: Lipiget 40mg | MD94: Tab | ME94: 10's | MF94: 425 | MG94: 250 | MH94: 41.17647059 | MI94: Getz Pharma | MX94: Lochol 40mg | MY94: Tab | MZ94: 10's | NA94: 174.99 | NB94: 133.7 | NC94: =100-NB94/NA94*100 -> 23.59563404 | ND94: Scilife Pharma
A95: 89 | B95: Tab | C95: Bisoprolol 5mg | D95: 20's | BB95: Actim 5mg | BC95: Tab | BD95: 14's | BE95: 95.66 | BF95: 58.1 | BG95: 39.26406021 | BH95: Sami | IB95: Lorposib | IC95: Tab | ID95: 14's | IE95: 115 | IF95: 80 | IG95: 30.43478261 | IH95: Fynk Pharma | JK95: Concor 5mg | JL95: Tab | JM95: 14's | JN95: 158.36 | JO95: 127.88 | JP95: =100-JO95/JN95*100 -> 19.24728467 | JQ95: Martin Dow
A96: 90 | B96: Tab | C96: Captopril 12.5mg | D96: 20's
A97: 91 | B97: Tab | C97: Captopril 25mg | D97: 20's | CR97: Capoten 25mg | CS97: Tab | CT97: 20's | CU97: 157.76 | CV97: 127.4 | CW97: =100-CV97/CU97*100 -> 19.24442191 | CX97: Gsk | QD97: Valopril 25mg | QE97: Tab | QF97: 20's | QG97: 113 | QH97: 93.17 | QI97: =100-QH97/QG97*100 -> 17.54867257 | QJ97: Valor Pharma
A98: 92 | B98: Tab | C98: Carvedilol 6.25mg | D98: 30's | AN98: Hart 6.25mg | AO98: Tab | AP98: 30's | AQ98: 66 | AR98: 44.88 | AS98: 32 | AT98: Macter | DF98: Vedicar 6.25mg | DG98: Tab | DH98: 30's | DI98: 160 | DJ98: 97 | DK98: =100-DJ98/DI98*100 -> 39.375 | DL98: BH | KM98: Carveda 6.25mg | KN98: Tab | KO98: 30's | KP98: 167.95 | KQ98: 49 | KR98: =100-KQ98/KP98*100 -> 70.82465019 | KS98: Ferozsons Labs
A99: 93 | B99: Tab | C99: Carvedilol 12.5mg | D99: 30's | DF99: Vedicar 12.5mg | DG99: Tab | DH99: 10's | DI99: 89.22 | DJ99: 49 | DK99: 45.07957857 | DL99: BH | KM99: Carveda 12.5mg | KN99: Tab | KO99: 30's | KP99: 335.91 | KQ99: 129 | KR99: 61.5968563 | KS99: Ferozsons Labs
A100: 94 | B100: Tab | C100: Carvedilol 25mg | D100: 30's | DF100: Vedicar 25mg | DG100: Tab | DH100: 10's | DI100: 145 | DJ100: 74 | DK100: 48.96551724 | DL100: BH | KM100: Carveda 25mg | KN100: Tab | KO100: 10's | KP100: 204.69 | KQ100: 98 | KR100: 52.12272217 | KS100: Ferozsons Labs
A101: 95 | B101: Tab | C101: Clopedogril 75mg+Asprin 75mg | D101: 30's | L101: Plagril plus | M101: Tab | N101: 10's | O101: 152.21 | P101: 71.47 | Q101: =100-P101/O101*100 -> 53.04513501 | R101: Saffron | AN101: Locril | AO101: Tab | AP101: 50's | AQ101: 200 | AR101: 157.5 | AS101: 21.25 | AT101: Macter | AU101: Lowplat Plus | AV101: Tab | AW101: 10's | AX101: 152.2 | AY101: 67.8 | AZ101: =100-AY101/AX101*100 -> 55.45335085 | BA101: Pharmevo | CY101: Orgrel Plus 81 | CZ101: Tab | DA101: 10's | DB101: 125 | DC101: 85 | DD101: =100-DC101/DB101*100 -> 32 | DE101: Bosch | DF101: Clotnil Plus 75/75mg | DG101: Tab | DH101: 10's | DI101: 125 | DJ101: 46.12 | DK101: 63.104 | DL101: BH | DM101: Pidogrel -AP | DN101: Tab | DO101: 10's | DP101: 147.07 | DQ101: 45 | DR101: =100-DQ101/DP101*100 -> 69.40232542 | DS101: Highnoon
A102: 96 | B102: Tab | C102: Clopidogrel 75 mg | D102: 10's | AU102: Lowplat | AV102: Tab | AW102: 10's | AX102: 146.96 | AY102: 65 | AZ102: 55.77027763 | BA102: Pharmevo | BW102: Ravplat 75mg | BX102: Tab | BY102: 10's | BZ102: 140 | CA102: 71.4 | CB102: =100-CA102/BZ102*100 -> 49 | CC102: Ray Pharma | CY102: Orgrel 75mg | CZ102: Tab | DA102: 10's | DB102: 120 | DC102: 81.6 | DD102: 32 | DE102: Bosch | DF102: Clotnil 75mg | DG102: Tab | DH102: 10's | DI102: 130 | DJ102: 45 | DK102: 65.38461538 | DL102: BH | DM102: Pidogrel 75mg | DN102: Tab | DO102: 10's | DP102: 150.13 | DQ102: 40 | DR102: 73.35642443 | DS102: Highnoon | EA102: Pletwil 75mg | EB102: Tab | EC102: 10's | ED102: 140 | EE102: 24 | EF102: =100-EE102/ED102*100 -> 82.85714286 | EG102: Wilson's | JD102: Seaclop 75mg | JE102: Tab | JF102: 10's | JG102: 140 | JH102: 35 | JI102: =100-JH102/JG102*100 -> 75 | JJ102: Novamed | NL102: Clopeg 75mg | NM102: Tab | NN102: 10's | NO102: 140 | NP102: 41 | NQ102: =100-NP102/NO102*100 -> 70.71428571 | NR102: Citi Pharma | PP102: Deplat 75mg | PQ102: Tab | PR102: 10's | PS102: 108.12 | PT102: 43.95 | PU102: =100-PT102/PS102*100 -> 59.35072142 | PV102: Nabiqasim
A103: 97 | B103: Tab | C103: Digoxin 0.25mg | D103: 100's
A104: 98 | B104: Tab | C104: Diltiazem 30mg | D104: 100's | DM104: Herbesser 30mg | DN104: Tab | DO104: 30's | DP104: 129.95 | DQ104: 105 | DR104: =100-DQ104/DP104*100 -> 19.19969219 | DS104: Highnoon
A105: 99 | B105: Tab | C105: Diltiazem 60mg | D105: 100's | DM105: Herbesser 60mg | DN105: Tab | DO105: 30's | DP105: 236.9 | DQ105: 195 | DR105: 17.68678767 | DS105: Highnoon
A106: 100 | B106: Tab | C106: Diosmin 450mg,Hesperidin 50mg | D106: 20's
A107: 101 | B107: Inj. | C107: Dobutamine 250mg | D107: Vial/20ml
A108: 102 | B108: Inj. | C108: Dopamine 40mg/ml, Vial of 5ml | D108: Vial/20ml | NL108: Dopilax | NM108: Inj | NN108: 50' | NO108: 2850 | NP108: 2422.5 | NQ108: =100-NP108/NO108*100 -> 15 | NR108: Elite Pharma
A109: 103 | B109: Tab | C109: Enalaprin Maleate 10 mg | D109: 20
A110: 104 | B110: Tab | C110: Enalaprin Maleate 5 mg | D110: 20
A111: 105 | B111: Tab | C111: Glyceryl Trinitrate:2.6mg | D111: 30's | E111: Sustac 2.6mg | F111: Tab | G111: 30's | H111: 181 | I111: 100 | J111: 44.75138122 | K111: Searle Pharma | QD111: Cornit 2.6mg | QE111: Tab | QF111: 30's | QG111: 160 | QH111: 131.92 | QI111: =100-QH111/QG111*100 -> 17.55 | QJ111: Valor Pharma
A112: 106 | B112: Tab | C112: Glyceryl Trinitrate:6.4mg | D112: 30's | E112: Sustac 6.4mg | F112: Tab | G112: 30's | H112: 214 | I112: 118 | J112: 44.85981308 | K112: Searle Pharma
A113: 107 | B113: Patches | C113: Glyceryltrintrite patches 2.5mg | D113: 10's
A114: 108 | B114: Patches | C114: Glyceryltrintrite patches 5mg | D114: 10's
A115: 109 | B115: Inj. | C115: Nitroglycerin 5mg/25mg | D115: 1'S
A116: 110 | B116: Inj. | C116: Hydralazine 20mg Injection | D116: amp
A117: 111 | B117: Tab | C117: Indapamide Hemihydrate 2.5 mg | D117: 30's
A118: 112 | B118: Tab | C118: Irbisartan+Hydrochlorothaizide 150/12.5mg | D118: 10's | DF118: Irecon-H | DG118: Tab | DH118: 10's | DI118: 213 | DJ118: 92 | DK118: =100-DJ118/DI118*100 -> 56.80751174 | DL118: BH | IW118: Co-Approval 150/12.5mg | IX118: Tab | IY118: 10's | IZ118: 1089.16 | JA118: 925.79 | JB118: =100-JA118/IZ118*100 -> 14.99963274 | JC118: Sanofi Aventis
A119: 113 | B119: Tab | C119: Irbisartan+Hydrochlorothaizide 300/25mg | D119: 10's | IW119: Co-Approval 300/25mg | IX119: Tab | IY119: 10's | IZ119: 1620.46 | JA119: 1377.39 | JB119: 15.00006171 | JC119: Sanofi Aventis
A120: 114 | B120: Tab | C120: Isocorbide Dinitrate 5mg (Sublingual) OR Glyceryl Trinitrate | D120: 30's
A121: 115 | B121: Tab | C121: Isosorbide Dinitrate 10mg | D121: 100's
A122: 116 | B122: Inj. | C122: Isosorbide Dinitrate 10mg/10ml | D122: 10's
A123: 117 | B123: Tab | C123: Isosorbide Mononitrate 20mg | D123: 20's | QD123: Monocord 20mg | QE123: Tab | QF123: 20's | QG123: 63 | QH123: 51.94 | QI123: =100-QH123/QG123*100 -> 17.55555556 | QJ123: Valor Pharma
A124: 118 | B124: Inj. | C124: Labetalol 50mg Injection | D124: amp
A125: 119 | B125: Tab | C125: Lisinopril (As Dihydrate) 10mg | D125: 20's | CY125: Corace 10mg | CZ125: Tab | DA125: 20's | DB125: 154 | DC125: 104.72 | DD125: =100-DC125/DB125*100 -> 32 | DE125: Bosch | LA125: Bepril 10mg | LB125: Tab | LC125: 10's | LD125: 82 | LE125: 57 | LF125: =100-LE125/LD125*100 -> 30.48780488 | LG125: Unisons Pharma | MX125: Trupril 10mg | MY125: Tab | MZ125: 14's | NA125: 112.16 | NB125: 95.34 | NC125: =100-NB125/NA125*100 -> 14.99643367 | ND125: Scilife Pharma | QD125: Lisopril 10mg | QE125: Tab | QF125: 30's | QG125: 400 | QH125: 329.8 | QI125: =100-QH125/QG125*100 -> 17.55 | QJ125: Valor Pharma | QK125: Conpril 10mg | QL125: Tab | QM125: 10's | QN125: 83 | QO125: 41.5 | QP125: =100-QO125/QN125*100 -> 50 | QQ125: Convell
... 156 more rows
